[Event "*** SCC Grand Prix: Titled Tuesday Blitz"]
[Site "Chess.com"]
[Date "2020.07.07"]
[Round "3"]
[White "PlotnikovPavel"]
[Black "DeviatkinAndrey"]
[Result "0-1"]
[WhiteElo "2482"]
[BlackElo "2725"]
[TimeControl "180+1"]
[EndTime "10:29:22 PDT"]
[Termination "DeviatkinAndrey won by resignation"]

1. e4 {[%clk 0:03:00.9]} 1... c6 {[%clk 0:02:59.3]} 2. d4 {[%clk 0:03:00.3]}
2... d5 {[%clk 0:02:59.6]} 3. exd5 {[%clk 0:03:01.2]} 3... cxd5 {[%clk
0:02:59.8]} 4. Bd3 {[%clk 0:03:01.7]} 4... Nc6 {[%clk 0:02:54.1]} 5. c3 {[%clk
0:03:01.9]} 5... Nf6 {[%clk 0:02:54.6]} 6. Bf4 {[%clk 0:03:01.5]} 6... Bg4
{[%clk 0:02:54.7]} 7. Qb3 {[%clk 0:03:00.7]} 7... Qc8 {[%clk 0:02:54.9]} 8. Nd2
{[%clk 0:02:57.8]} 8... e6 {[%clk 0:02:55.3]} 9. Ngf3 {[%clk 0:02:57.2]} 9...
Be7 {[%clk 0:02:55.8]} 10. O-O {[%clk 0:02:56.9]} 10... Bh5 {[%clk 0:02:56.3]}
11. Ne5 {[%clk 0:02:54.7]} 11... Nxe5 {[%clk 0:02:55.6]} 12. Bxe5 {[%clk
0:02:54.3]} 12... Bg6 {[%clk 0:02:55.3]} 13. Bxf6 {[%clk 0:02:37.6]} 13... gxf6
{[%clk 0:02:50.8]} 14. Bb5+ {[%clk 0:02:29.4]} 14... Kf8 {[%clk 0:02:50.3]} 15.
f4 {[%clk 0:02:28.9]} 15... Bf5 {[%clk 0:02:31.1]} 16. Rf3 {[%clk 0:02:19.2]}
16... Bd6 {[%clk 0:02:26.9]} 17. Raf1 {[%clk 0:02:13.8]} 17... Qc7 {[%clk
0:02:22.6]} 18. h3 {[%clk 0:02:02.2]} 18... h6 {[%clk 0:02:21.9]} 19. Kh1 {[%clk
0:02:00.6]} 19... h5 {[%clk 0:02:22.8]} 20. R3f2 {[%clk 0:01:40.6]} 20... h4
{[%clk 0:02:21.6]} 21. c4 {[%clk 0:01:32]} 21... a6 {[%clk 0:02:16.8]} 22. Ba4
{[%clk 0:01:31.5]} 22... dxc4 {[%clk 0:02:16.1]} 23. Qxc4 {[%clk 0:01:30.8]}
23... Qxc4 {[%clk 0:02:10.6]} 24. Nxc4 {[%clk 0:01:31.7]} 24... Bc7 {[%clk
0:01:52.5]} 25. Bc2 {[%clk 0:01:30.9]} 25... Bxc2 {[%clk 0:01:24.8]} 26. Rxc2
{[%clk 0:01:31.8]} 26... Rd8 {[%clk 0:01:25.1]} 27. f5 {[%clk 0:01:31.1]} 27...
Rxd4 {[%clk 0:01:06.9]} 28. fxe6 {[%clk 0:01:30.9]} 28... fxe6 {[%clk
0:01:07.4]} 29. Rxf6+ {[%clk 0:01:30.2]} 29... Ke7 {[%clk 0:01:07.6]} 30. Rf1
{[%clk 0:01:29]} 30... Bg3 {[%clk 0:01:02]} 31. Nd2 {[%clk 0:01:24.1]} 31...
Rhd8 {[%clk 0:00:59.8]} 32. Nf3 {[%clk 0:01:17.2]} 32... Rd1 {[%clk 0:00:59.9]}
33. Rc1 {[%clk 0:01:17.1]} 33... Rxf1+ {[%clk 0:00:59.4]} 34. Rxf1 {[%clk
0:01:16.4]} 34... e5 {[%clk 0:00:59.5]} 35. Ng5 {[%clk 0:01:15.1]} 35... Rd2
{[%clk 0:00:52]} 36. Rb1 {[%clk 0:01:14.2]} 36... Re2 {[%clk 0:00:47.2]} 37. Nf3
{[%clk 0:01:09.4]} 37... Kf6 {[%clk 0:00:42.7]} 38. Kg1 {[%clk 0:01:09.4]} 38...
e4 {[%clk 0:00:42.5]} 39. Nd4 {[%clk 0:01:07]} 39... Rd2 {[%clk 0:00:42.4]} 40.
Nb3 {[%clk 0:01:04.8]} 40... Rc2 {[%clk 0:00:37.3]} 41. a4 {[%clk 0:00:53.2]}
41... Ke5 {[%clk 0:00:33.2]} 42. Na1 {[%clk 0:00:37.7]} 42... Rd2 {[%clk
0:00:28.1]} 43. Nb3 {[%clk 0:00:37.1]} 43... Rc2 {[%clk 0:00:22.4]} 44. Na1
{[%clk 0:00:36.7]} 44... Re2 {[%clk 0:00:22.6]} 45. b4 {[%clk 0:00:31.6]} 45...
e3 {[%clk 0:00:21.4]} 46. Nb3 {[%clk 0:00:30.5]} 46... b6 {[%clk 0:00:17.9]} 47.
a5 {[%clk 0:00:29.7]} 47... bxa5 {[%clk 0:00:17.7]} 48. bxa5 {[%clk 0:00:29.9]}
48... Rc2 {[%clk 0:00:17.6]} 49. Rc1 {[%clk 0:00:26.9]} 49... e2 {[%clk
0:00:17.3]} 0-1

[Event "*** SCC Grand Prix: Titled Tuesday Blitz"]
[Site "Chess.com"]
[Date "2020.07.07"]
[Round "3"]
[White "antoszu"]
[Black "Godzillator"]
[Result "1/2-1/2"]
[WhiteElo "2537"]
[BlackElo "2365"]
[TimeControl "180+1"]
[EndTime "10:29:22 PDT"]
[Termination "Game drawn by agreement"]

1. d4 {[%clk 0:03:00.9]} 1... d5 {[%clk 0:02:59.5]} 2. c4 {[%clk 0:03:01]} 2...
c6 {[%clk 0:02:59.4]} 3. Nc3 {[%clk 0:03:01]} 3... Nf6 {[%clk 0:02:59.5]} 4. Nf3
{[%clk 0:03:01.3]} 4... a6 {[%clk 0:02:59.3]} 5. Qc2 {[%clk 0:03:00.6]} 5... Bg4
{[%clk 0:02:56.5]} 6. Ne5 {[%clk 0:02:51.2]} 6... Bh5 {[%clk 0:02:56.4]} 7. cxd5
{[%clk 0:02:11]} 7... Nxd5 {[%clk 0:02:55]} 8. Nxd5 {[%clk 0:02:00.6]} 8... Qxd5
{[%clk 0:02:53.4]} 9. e3 {[%clk 0:01:59.7]} 9... Nd7 {[%clk 0:02:44.5]} 10. Nxd7
{[%clk 0:01:40.8]} 10... Qxd7 {[%clk 0:02:44.1]} 11. Bc4 {[%clk 0:01:38]} 11...
e6 {[%clk 0:02:43.5]} 12. Bd2 {[%clk 0:01:34.8]} 12... Bd6 {[%clk 0:02:43]} 13.
Bd3 {[%clk 0:01:34]} 13... Bg6 {[%clk 0:02:42.5]} 14. Bxg6 {[%clk 0:01:33.7]}
14... hxg6 {[%clk 0:02:42.1]} 15. h3 {[%clk 0:01:33.9]} 15... Rc8 {[%clk
0:02:36.9]} 16. b4 {[%clk 0:01:29.4]} 16... Bb8 {[%clk 0:02:30.9]} 17. Qe4
{[%clk 0:01:17]} 17... Qd5 {[%clk 0:02:29.8]} 18. Qg4 {[%clk 0:01:12.2]} 18...
Qf5 {[%clk 0:02:24.6]} 19. Qxf5 {[%clk 0:01:08.5]} 19... gxf5 {[%clk 0:02:24.7]}
20. a4 {[%clk 0:01:08.2]} 20... Kd7 {[%clk 0:02:22.8]} 21. Ke2 {[%clk
0:01:07.9]} 21... Bd6 {[%clk 0:02:22]} 22. Rab1 {[%clk 0:01:03.6]} 22... Rc7
{[%clk 0:02:18.1]} 23. Rhc1 {[%clk 0:01:02.2]} 23... Rhc8 {[%clk 0:02:17.6]} 24.
Rc2 {[%clk 0:00:54.7]} 24... g6 {[%clk 0:02:16.9]} 25. f3 {[%clk 0:00:51.5]}
25... e5 {[%clk 0:02:02.7]} 26. dxe5 {[%clk 0:00:41.7]} 26... Bxe5 {[%clk
0:02:02.7]} 27. Rd1 {[%clk 0:00:42.2]} 27... Ke6 {[%clk 0:02:02.3]} 28. Be1
{[%clk 0:00:39]} 28... Rd7 {[%clk 0:02:00.1]} 29. Rxd7 {[%clk 0:00:35.8]} 29...
Kxd7 {[%clk 0:02:00.1]} 30. Rc5 {[%clk 0:00:33.4]} 30... Bd6 {[%clk 0:01:57.7]}
31. Rc1 {[%clk 0:00:29.8]} 31... Re8 {[%clk 0:01:55.6]} 32. Kd3 {[%clk
0:00:26.1]} 32... Re5 {[%clk 0:01:53.9]} 33. Bc3 {[%clk 0:00:24.4]} 33... Rd5+
{[%clk 0:01:53.4]} 34. Ke2 {[%clk 0:00:24.3]} 34... b5 {[%clk 0:01:45]} 35. e4
{[%clk 0:00:19]} 35... fxe4 {[%clk 0:01:44.4]} 36. fxe4 {[%clk 0:00:19.9]} 36...
Rh5 {[%clk 0:01:40.3]} 37. axb5 {[%clk 0:00:18.9]} 37... Rxb5 {[%clk 0:01:38.5]}
38. Rd1 {[%clk 0:00:18.7]} 38... Ke6 {[%clk 0:01:37.9]} 39. Ra1 {[%clk
0:00:18.7]} 39... Bxb4 {[%clk 0:01:33.2]} 40. Rxa6 {[%clk 0:00:18.1]} 40... Bxc3
{[%clk 0:01:23.7]} 41. Rxc6+ {[%clk 0:00:18.1]} 41... Ke5 {[%clk 0:01:23.7]} 42.
Rxc3 {[%clk 0:00:19]} 42... Kxe4 {[%clk 0:01:23.9]} 43. Re3+ {[%clk 0:00:19.2]}
43... Kf4 {[%clk 0:01:23.7]} 44. Rf3+ {[%clk 0:00:19.5]} 44... Kg5 {[%clk
0:01:22]} 45. Rxf7 {[%clk 0:00:19.2]} 45... Rb2+ {[%clk 0:01:22]} 46. Kf1 {[%clk
0:00:19.3]} 46... Rc2 {[%clk 0:01:21.6]} 47. Kg1 {[%clk 0:00:19]} 47... Rb2
{[%clk 0:01:21.6]} 48. Rf2 {[%clk 0:00:18.5]} 48... Rb3 {[%clk 0:01:19.5]} 49.
Kh2 {[%clk 0:00:18.6]} 49... Ra3 {[%clk 0:01:18.2]} 50. g3 {[%clk 0:00:18.4]}
50... Rb3 {[%clk 0:01:18]} 51. Kg2 {[%clk 0:00:18.6]} 51... Ra3 {[%clk 0:01:18]}
52. Re2 {[%clk 0:00:17.1]} 52... Rb3 {[%clk 0:01:18]} 53. Rd2 {[%clk 0:00:17.4]}
53... Ra3 {[%clk 0:01:17.7]} 54. Rd5+ {[%clk 0:00:17.1]} 54... Kf6 {[%clk
0:01:17.3]} 55. h4 {[%clk 0:00:17.6]} 55... Rb3 {[%clk 0:01:16.3]} 56. Kh3
{[%clk 0:00:17.6]} 56... Ra3 {[%clk 0:01:16]} 57. Rd4 {[%clk 0:00:17.4]} 57...
Rb3 {[%clk 0:01:15.7]} 58. Rf4+ {[%clk 0:00:17.2]} 58... Kg7 {[%clk 0:01:14.8]}
59. Kg4 {[%clk 0:00:17.6]} 59... Kh6 {[%clk 0:01:14.8]} 60. Rc4 {[%clk
0:00:17.2]} 60... Ra3 {[%clk 0:01:14.5]} 61. Kf4 {[%clk 0:00:16.8]} 61... Rb3
{[%clk 0:01:14.1]} 62. g4 {[%clk 0:00:16.5]} 62... Rb7 {[%clk 0:01:13.3]} 63.
Rd4 {[%clk 0:00:13.4]} 63... Ra7 {[%clk 0:01:12.7]} 64. Ke5 {[%clk 0:00:13.2]}
64... Rf7 {[%clk 0:01:10.2]} 65. Ke6 {[%clk 0:00:11.7]} 65... Rf1 {[%clk
0:01:09.6]} 66. h5 {[%clk 0:00:08]} 66... gxh5 {[%clk 0:01:08.8]} 67. gxh5
{[%clk 0:00:08.9]} 67... Kxh5 {[%clk 0:01:08.8]} 68. Rd5+ {[%clk 0:00:08.9]}
1/2-1/2

[Event "*** SCC Grand Prix: Titled Tuesday Blitz"]
[Site "Chess.com"]
[Date "2020.07.07"]
[Round "3"]
[White "Khazieva_Elza"]
[Black "profofchess"]
[Result "0-1"]
[WhiteElo "2280"]
[BlackElo "2463"]
[TimeControl "180+1"]
[EndTime "10:29:22 PDT"]
[Termination "profofchess won on time"]

1. e4 {[%clk 0:03:00.9]} 1... e6 {[%clk 0:03:00.1]} 2. d3 {[%clk 0:03:00.7]}
2... c5 {[%clk 0:02:57.7]} 3. Nf3 {[%clk 0:02:59.8]} 3... Nc6 {[%clk 0:02:58]}
4. g3 {[%clk 0:03:00.2]} 4... g6 {[%clk 0:02:58.2]} 5. Bg2 {[%clk 0:03:00.5]}
5... Bg7 {[%clk 0:02:58.6]} 6. O-O {[%clk 0:03:01]} 6... d6 {[%clk 0:02:58.9]}
7. c3 {[%clk 0:03:00.4]} 7... e5 {[%clk 0:02:58.7]} 8. Na3 {[%clk 0:02:35.3]}
8... Nge7 {[%clk 0:02:54.4]} 9. Nc4 {[%clk 0:02:32.2]} 9... b5 {[%clk 0:02:45]}
10. Ne3 {[%clk 0:02:31.5]} 10... Rb8 {[%clk 0:02:43.2]} 11. a4 {[%clk
0:02:23.9]} 11... a6 {[%clk 0:02:39.9]} 12. axb5 {[%clk 0:02:23.9]} 12... axb5
{[%clk 0:02:40.8]} 13. h4 {[%clk 0:02:03.2]} 13... h6 {[%clk 0:02:18.2]} 14. Qe2
{[%clk 0:01:40.9]} 14... O-O {[%clk 0:02:17.1]} 15. Bd2 {[%clk 0:01:37]} 15...
f5 {[%clk 0:02:03.6]} 16. h5 {[%clk 0:01:11.6]} 16... f4 {[%clk 0:01:53.1]} 17.
gxf4 {[%clk 0:00:54.7]} 17... exf4 {[%clk 0:01:54]} 18. Nd5 {[%clk 0:00:49.4]}
18... g5 {[%clk 0:01:51.8]} 19. Nh2 {[%clk 0:00:27.5]} 19... Nxd5 {[%clk
0:01:38.7]} 20. exd5 {[%clk 0:00:27.3]} 20... Re8 {[%clk 0:01:37.8]} 21. Qd1
{[%clk 0:00:25]} 21... Ne5 {[%clk 0:01:37.8]} 22. d4 {[%clk 0:00:24.3]} 22...
cxd4 {[%clk 0:01:33.7]} 23. cxd4 {[%clk 0:00:25.2]} 23... Nc4 {[%clk 0:01:32.4]}
24. Bc3 {[%clk 0:00:19.1]} 24... Bf5 {[%clk 0:01:03]} 25. Ra7 {[%clk 0:00:18.3]}
25... Qb6 {[%clk 0:00:54.5]} 26. Qa1 {[%clk 0:00:17.5]} 26... Rb7 {[%clk
0:00:51]} 27. Ra6 {[%clk 0:00:16]} 27... Qd8 {[%clk 0:00:47.7]} 28. b3 {[%clk
0:00:14.7]} 28... Nb6 {[%clk 0:00:28]} 29. Ba5 {[%clk 0:00:14.6]} 29... Qb8
{[%clk 0:00:27.9]} 30. Bxb6 {[%clk 0:00:11.7]} 30... Rxb6 {[%clk 0:00:28.8]} 31.
Qa3 {[%clk 0:00:10.1]} 31... Bxd4 {[%clk 0:00:24]} 32. Nf3 {[%clk 0:00:05.9]}
32... Rxa6 {[%clk 0:00:20.4]} 33. Qxa6 {[%clk 0:00:05.5]} 33... Qb6 {[%clk
0:00:21.3]} 34. Qa3 {[%clk 0:00:03.7]} 34... Bg7 {[%clk 0:00:14.3]} 35. Nd2
{[%clk 0:00:02]} 35... Qd4 {[%clk 0:00:10.8]} 36. Qc1 {[%clk 0:00:01.8]} 36...
Rc8 {[%clk 0:00:09.5]} 37. Qd1 {[%clk 0:00:01.8]} 37... Rc2 {[%clk 0:00:09.3]}
38. Qe1 {[%clk 0:00:02.1]} 38... Qxd2 {[%clk 0:00:08.1]} 39. Qe8+ {[%clk
0:00:02.2]} 39... Kh7 {[%clk 0:00:08.4]} 0-1

[Event "*** SCC Grand Prix: Titled Tuesday Blitz"]
[Site "Chess.com"]
[Date "2020.07.07"]
[Round "3"]
[White "BigAl"]
[Black "theblitzchamp"]
[Result "0-1"]
[WhiteElo "2507"]
[BlackElo "2745"]
[TimeControl "180+1"]
[EndTime "10:29:24 PDT"]
[Termination "theblitzchamp won on time"]

1. e4 {[%clk 0:03:00.9]} 1... d6 {[%clk 0:02:59.7]} 2. d4 {[%clk 0:03:00.5]}
2... Nf6 {[%clk 0:03:00]} 3. Nc3 {[%clk 0:03:01.1]} 3... e5 {[%clk 0:03:00.2]}
4. Nf3 {[%clk 0:03:00.2]} 4... Nbd7 {[%clk 0:03:00.1]} 5. Bc4 {[%clk 0:03:00.3]}
5... Be7 {[%clk 0:03:00.3]} 6. a4 {[%clk 0:02:59.6]} 6... O-O {[%clk 0:03:00.3]}
7. a5 {[%clk 0:02:59.2]} 7... c6 {[%clk 0:03:00.7]} 8. Ba2 {[%clk 0:02:59.1]}
8... Rb8 {[%clk 0:02:52.8]} 9. O-O {[%clk 0:02:57.9]} 9... b5 {[%clk 0:02:40.6]}
10. axb6 {[%clk 0:02:57.4]} 10... axb6 {[%clk 0:02:41.5]} 11. d5 {[%clk
0:02:41.6]} 11... cxd5 {[%clk 0:02:40.9]} 12. Bxd5 {[%clk 0:02:41.6]} 12... b5
{[%clk 0:02:38.9]} 13. b4 {[%clk 0:02:23.3]} 13... Nb6 {[%clk 0:02:37.5]} 14.
Bc6 {[%clk 0:02:01.1]} 14... Qc7 {[%clk 0:01:58.1]} 15. Nd5 {[%clk 0:01:59.1]}
15... Nbxd5 {[%clk 0:01:56.5]} 16. exd5 {[%clk 0:02:00]} 16... Bd7 {[%clk
0:01:56.4]} 17. Bxd7 {[%clk 0:01:54.7]} 17... Qxd7 {[%clk 0:01:57.3]} 18. Bg5
{[%clk 0:01:26.6]} 18... Rfc8 {[%clk 0:01:53.8]} 19. Bxf6 {[%clk 0:01:21.9]}
19... Bxf6 {[%clk 0:01:53.6]} 20. Ra6 {[%clk 0:01:19.5]} 20... Rc4 {[%clk
0:01:35.8]} 21. Nd2 {[%clk 0:01:01.9]} 21... Rxb4 {[%clk 0:01:10.5]} 22. c3
{[%clk 0:01:01.9]} 22... Ra4 {[%clk 0:00:56.6]} 23. Rc6 {[%clk 0:01:01.8]} 23...
h6 {[%clk 0:00:35.8]} 24. Qb1 {[%clk 0:00:48.3]} 24... Be7 {[%clk 0:00:26.5]}
25. h3 {[%clk 0:00:40.7]} 25... b4 {[%clk 0:00:26.8]} 26. c4 {[%clk 0:00:39.2]}
26... b3 {[%clk 0:00:22.9]} 27. Ne4 {[%clk 0:00:18.7]} 27... b2 {[%clk
0:00:19.6]} 28. Qc2 {[%clk 0:00:15.8]} 28... Ra1 {[%clk 0:00:19.3]} 29. Nc3
{[%clk 0:00:13.1]} 29... Qa7 {[%clk 0:00:18.2]} 30. Rb1 {[%clk 0:00:11.6]} 30...
Rxb1+ {[%clk 0:00:17.6]} 31. Nxb1 {[%clk 0:00:10.6]} 31... Qd4 {[%clk
0:00:17.5]} 32. Kh2 {[%clk 0:00:09.9]} 32... Bg5 {[%clk 0:00:17.1]} 33. g3
{[%clk 0:00:09.9]} 33... h5 {[%clk 0:00:15.9]} 34. Rxd6 {[%clk 0:00:09.7]} 34...
h4 {[%clk 0:00:15.6]} 35. g4 {[%clk 0:00:09.4]} 35... Bf4+ {[%clk 0:00:15.7]}
36. Kg2 {[%clk 0:00:10]} 36... e4 {[%clk 0:00:15.7]} 37. Rd7 {[%clk 0:00:09]}
37... e3 {[%clk 0:00:15.7]} 38. fxe3 {[%clk 0:00:07.5]} 38... Qxe3 {[%clk
0:00:15.2]} 39. Qf2 {[%clk 0:00:07.4]} 39... Qe4+ {[%clk 0:00:15.1]} 40. Qf3
{[%clk 0:00:05.8]} 40... Qc2+ {[%clk 0:00:15.2]} 41. Qf2 {[%clk 0:00:04.8]}
41... Qxb1 {[%clk 0:00:15.3]} 42. Qxf4 {[%clk 0:00:04.9]} 42... Qc2+ {[%clk
0:00:15.9]} 43. Kf3 {[%clk 0:00:05.4]} 43... Rb3+ {[%clk 0:00:15.6]} 0-1

[Event "*** SCC Grand Prix: Titled Tuesday Blitz"]
[Site "Chess.com"]
[Date "2020.07.07"]
[Round "3"]
[White "AlphaHero0"]
[Black "chessablanca"]
[Result "0-1"]
[WhiteElo "1959"]
[BlackElo "2465"]
[TimeControl "180+1"]
[EndTime "10:29:24 PDT"]
[Termination "chessablanca won on time"]

1. Nf3 {[%clk 0:03:00.9]} 1... d5 {[%clk 0:02:59.7]} 2. c4 {[%clk 0:03:00.7]}
2... c6 {[%clk 0:02:59.4]} 3. e3 {[%clk 0:03:01]} 3... Nf6 {[%clk 0:02:59.1]} 4.
Nc3 {[%clk 0:03:01.5]} 4... Nbd7 {[%clk 0:02:58]} 5. d4 {[%clk 0:02:57.9]} 5...
e6 {[%clk 0:02:56.6]} 6. Qc2 {[%clk 0:02:54.3]} 6... Bd6 {[%clk 0:02:56.5]} 7.
b3 {[%clk 0:02:49.6]} 7... O-O {[%clk 0:02:52.3]} 8. Bd3 {[%clk 0:02:45.8]} 8...
e5 {[%clk 0:02:50.3]} 9. cxd5 {[%clk 0:02:43.7]} 9... cxd5 {[%clk 0:02:46.4]}
10. Nb5 {[%clk 0:02:40.7]} 10... Bb8 {[%clk 0:02:44]} 11. dxe5 {[%clk
0:02:26.2]} 11... Nxe5 {[%clk 0:02:43.9]} 12. Nxe5 {[%clk 0:02:05.9]} 12... Bxe5
{[%clk 0:02:43]} 13. Nd4 {[%clk 0:02:06]} 13... Bd7 {[%clk 0:02:35.5]} 14. O-O
{[%clk 0:02:03.2]} 14... Rc8 {[%clk 0:02:34.1]} 15. Qb1 {[%clk 0:02:03.4]} 15...
h6 {[%clk 0:02:17.5]} 16. Bb2 {[%clk 0:02:03.4]} 16... Re8 {[%clk 0:02:13.4]}
17. Nf3 {[%clk 0:02:00.3]} 17... Bd6 {[%clk 0:02:09.7]} 18. Bf5 {[%clk
0:01:55.4]} 18... Ne4 {[%clk 0:02:06.8]} 19. Bxd7 {[%clk 0:01:46.4]} 19... Qxd7
{[%clk 0:02:07.7]} 20. Bd4 {[%clk 0:01:41.5]} 20... b6 {[%clk 0:01:48.4]} 21.
Qb2 {[%clk 0:01:38.5]} 21... Qg4 {[%clk 0:01:41.8]} 22. h3 {[%clk 0:01:34.1]}
22... Qg6 {[%clk 0:01:41.8]} 23. Rac1 {[%clk 0:01:21.3]} 23... f6 {[%clk
0:01:16.8]} 24. Rxc8 {[%clk 0:01:17.2]} 24... Rxc8 {[%clk 0:01:16.7]} 25. Rc1
{[%clk 0:01:17.3]} 25... Qf5 {[%clk 0:01:16.3]} 26. a3 {[%clk 0:00:52.4]} 26...
Kh7 {[%clk 0:01:06.1]} 27. h4 {[%clk 0:00:22.9]} 27... Re8 {[%clk 0:00:56.8]}
28. Qc2 {[%clk 0:00:19.8]} 28... g5 {[%clk 0:00:54.9]} 29. hxg5 {[%clk
0:00:18.9]} 29... hxg5 {[%clk 0:00:55.8]} 30. Nh2 {[%clk 0:00:18]} 30... Re7
{[%clk 0:00:49.7]} 31. f3 {[%clk 0:00:11.5]} 31... Ng3 {[%clk 0:00:47.7]} 32.
Nf1 {[%clk 0:00:10.4]} 32... Qxc2 {[%clk 0:00:32.9]} 33. Rxc2 {[%clk 0:00:11.3]}
33... Nh5 {[%clk 0:00:30.6]} 34. Rc6 {[%clk 0:00:09.4]} 34... Re6 {[%clk
0:00:28.4]} 35. b4 {[%clk 0:00:08.1]} 35... Kg6 {[%clk 0:00:25.5]} 36. b5 {[%clk
0:00:05.9]} 36... Ng7 {[%clk 0:00:25.3]} 37. a4 {[%clk 0:00:05.3]} 37... Nf5
{[%clk 0:00:24.7]} 38. Rc8 {[%clk 0:00:03.6]} 38... Re7 {[%clk 0:00:23.7]} 39.
g4 {[%clk 0:00:02.3]} 39... Nh4 {[%clk 0:00:22.2]} 40. Kf2 {[%clk 0:00:01.7]}
40... f5 {[%clk 0:00:20.3]} 41. Ng3 {[%clk 0:00:02.6]} 41... fxg4 {[%clk
0:00:17.6]} 42. fxg4 {[%clk 0:00:02.3]} 42... Rf7+ {[%clk 0:00:17.8]} 43. Ke2
{[%clk 0:00:01.7]} 43... Bxg3 {[%clk 0:00:17.3]} 44. Rg8+ {[%clk 0:00:01]} 44...
Kh7 {[%clk 0:00:17]} 0-1

[Event "*** SCC Grand Prix: Titled Tuesday Blitz"]
[Site "Chess.com"]
[Date "2020.07.07"]
[Round "3"]
[White "Rish_97"]
[Black "ShimanovAlex"]
[Result "1/2-1/2"]
[WhiteElo "2649"]
[BlackElo "2877"]
[TimeControl "180+1"]
[EndTime "10:29:26 PDT"]
[Termination "Game drawn by repetition"]

1. d4 {[%clk 0:03:00.9]} 1... Nf6 {[%clk 0:02:59.3]} 2. Nf3 {[%clk 0:03:00.3]}
2... c5 {[%clk 0:02:56.9]} 3. e3 {[%clk 0:02:58.8]} 3... b6 {[%clk 0:02:55.8]}
4. Bd3 {[%clk 0:02:57.4]} 4... Bb7 {[%clk 0:02:56.2]} 5. O-O {[%clk 0:02:57.2]}
5... g6 {[%clk 0:02:56.7]} 6. c4 {[%clk 0:02:55.9]} 6... Bg7 {[%clk 0:02:56.7]}
7. d5 {[%clk 0:02:55.7]} 7... O-O {[%clk 0:02:55.7]} 8. Nc3 {[%clk 0:02:55.8]}
8... d6 {[%clk 0:02:54.9]} 9. e4 {[%clk 0:02:55.9]} 9... e5 {[%clk 0:02:54.7]}
10. Re1 {[%clk 0:02:32.7]} 10... Nbd7 {[%clk 0:02:46.2]} 11. a3 {[%clk
0:02:27.5]} 11... Nh5 {[%clk 0:02:43]} 12. b4 {[%clk 0:02:26]} 12... Nf4 {[%clk
0:02:42.7]} 13. Bf1 {[%clk 0:02:25.3]} 13... Bc8 {[%clk 0:02:39.1]} 14. g3
{[%clk 0:02:23.6]} 14... Nh5 {[%clk 0:02:38.3]} 15. Rb1 {[%clk 0:02:23.2]} 15...
h6 {[%clk 0:02:35.8]} 16. Bg2 {[%clk 0:02:17.3]} 16... Nhf6 {[%clk 0:02:34.7]}
17. Be3 {[%clk 0:01:54.9]} 17... Ng4 {[%clk 0:02:23.2]} 18. Bd2 {[%clk
0:01:53.5]} 18... Ba6 {[%clk 0:02:19.1]} 19. Nb5 {[%clk 0:01:51]} 19... Qb8
{[%clk 0:01:53.2]} 20. Qc1 {[%clk 0:01:18.8]} 20... Kh7 {[%clk 0:01:50.7]} 21.
Qc2 {[%clk 0:01:18.9]} 21... Rc8 {[%clk 0:01:46.9]} 22. Rec1 {[%clk 0:01:14.7]}
22... cxb4 {[%clk 0:01:38.2]} 23. Rxb4 {[%clk 0:01:01.8]} 23... Ngf6 {[%clk
0:01:35.2]} 24. h3 {[%clk 0:00:54.8]} 24... Nc5 {[%clk 0:01:32.4]} 25. Nc3
{[%clk 0:00:44.5]} 25... Rc7 {[%clk 0:01:28.5]} 26. Be3 {[%clk 0:00:44]} 26...
Qe8 {[%clk 0:01:25.3]} 27. Nd2 {[%clk 0:00:43.7]} 27... Rac8 {[%clk 0:01:24.5]}
28. a4 {[%clk 0:00:43]} 28... Nfd7 {[%clk 0:01:20.8]} 29. h4 {[%clk 0:00:38.9]}
29... Nb7 {[%clk 0:01:14]} 30. Bh3 {[%clk 0:00:34.3]} 30... Na5 {[%clk
0:01:06.4]} 31. Nb5 {[%clk 0:00:32.4]} 31... Bxb5 {[%clk 0:01:06.1]} 32. axb5
{[%clk 0:00:29.3]} 32... Ra8 {[%clk 0:01:04]} 33. Nb3 {[%clk 0:00:27.5]} 33...
Nxb3 {[%clk 0:01:00.8]} 34. Rxb3 {[%clk 0:00:28.4]} 34... Nc5 {[%clk 0:01:00.3]}
35. Ra3 {[%clk 0:00:28.7]} 35... h5 {[%clk 0:00:58.8]} 36. Rca1 {[%clk
0:00:28.5]} 36... Qe7 {[%clk 0:00:57.8]} 37. Qa2 {[%clk 0:00:27.4]} 37... Bh6
{[%clk 0:00:19.2]} 38. Bxc5 {[%clk 0:00:24.6]} 38... dxc5 {[%clk 0:00:19.7]} 39.
Ra6 {[%clk 0:00:20.6]} 39... Qd6 {[%clk 0:00:19.7]} 40. Qe2 {[%clk 0:00:18.7]}
40... Re7 {[%clk 0:00:16.4]} 41. Kg2 {[%clk 0:00:18.9]} 41... Kg7 {[%clk
0:00:15.6]} 42. Qa2 {[%clk 0:00:18.5]} 42... Kh7 {[%clk 0:00:15]} 43. Qc2 {[%clk
0:00:18.5]} 43... Kg7 {[%clk 0:00:13.5]} 44. Qd3 {[%clk 0:00:18.9]} 44... Kh7
{[%clk 0:00:13.5]} 45. R1a2 {[%clk 0:00:19.2]} 45... Kg7 {[%clk 0:00:13.6]} 46.
R2a3 {[%clk 0:00:19.6]} 46... Kh7 {[%clk 0:00:13.7]} 47. Ra2 {[%clk 0:00:20.1]}
47... Kg7 {[%clk 0:00:13.9]} 48. R2a3 {[%clk 0:00:20.6]} 48... Kh7 {[%clk
0:00:14]} 49. Ra2 {[%clk 0:00:21.1]} 1/2-1/2